bitfinex/quotes_BTCUSD_20260310
["timestamp","ask_amount","ask_price","bid_price","bid_amount"]
[1773123078537,0.03,69919.0,69909.0,0.0002]
[1773123078736,0.00098864,69915.0,69901.0,0.0002534]
[1773123078938,0.00144,69914.0,69901.0,0.0002534]
[1773123079939,0.05440949,69912.0,69901.0,0.0002534]
[1773123080145,0.13899934,69911.0,69901.0,0.0002534]
[1773123080542,0.10151979,69911.0,69901.0,0.0002534]
[1773123080981,0.10151979,69911.0,69909.0,0.0002]
[1773123082182,0.10251979,69911.0,69909.0,0.0002]
[1773123083013,0.10151979,69911.0,69909.0,0.0002]
[1773123083338,0.10251979,69911.0,69909.0,0.0002]
[1773123083686,0.10351979,69911.0,69909.0,0.0002]
[1773123084451,0.10351979,69911.0,69901.0,0.0002534]
[1773123084654,0.10251979,69911.0,69901.0,0.0002534]
[1773123085052,0.10351979,69911.0,69901.0,0.0002534]
[1773123085265,0.03,69909.0,69899.0,0.0002]
[1773123085468,0.00144,69908.0,69899.0,0.0002]
[1773123086812,0.00144,69908.0,69897.0,1e-08]
[1773123086813,0.03,69907.0,69897.0,1e-08]
[1773123088369,0.03,69907.0,69899.0,0.0002]
[1773123088615,0.03,69905.0,69899.0,0.0002]
[1773123090179,0.00144,69904.0,69899.0,0.0002]
[1773123091090,0.03,69902.0,69899.0,0.0002]
[1773123091267,0.03,69902.0,69897.0,1e-08]
[1773123091476,0.03,69902.0,69897.0,0.01755045]
[1773123094022,0.00144,69901.0,69897.0,0.11021511]
[1773123094218,0.00144,69901.0,69897.0,1e-08]
[1773123094394,0.00144,69901.0,69898.0,0.01706809]
[1773123097347,0.07152154,69909.0,69898.0,0.01706809]
[1773123097348,0.03,69903.0,69898.0,0.01706809]
[1773123097678,0.00144,69902.0,69898.0,0.01706809]
[1773123098029,3.4e-07,69905.0,69898.0,0.01706809]
[1773123098233,0.34301859,69968.0,69900.0,0.01775654]
[1773123098234,0.07151129,69920.0,69900.0,0.01775654]
[1773123098491,0.07480736,69923.0,69904.0,0.01775654]
[1773123098726,0.00166001,69921.0,69905.0,0.00144]
[1773123098925,0.00144,69922.0,69915.0,0.1102151]
[1773123099046,0.00144,69922.0,69916.0,0.01775654]
[1773123100966,0.00144,69922.0,69916.0,0.07151377]
[1773123101180,0.00144,69922.0,69917.0,0.01809523]
[1773123103130,0.00166001,69922.0,69917.0,0.01809523]
[1773123105097,0.00022001,69922.0,69917.0,0.01809523]
[1773123105303,0.10316908,69922.0,69909.0,0.00144]
[1773123105643,0.10316908,69922.0,69909.0,0.01814864]
[1773123107515,0.10316908,69922.0,69911.0,0.01808504]
[1773123107713,0.10416908,69922.0,69911.0,0.01808504]
[1773123108310,0.10316908,69922.0,69911.0,0.01808504]
[1773123109362,0.10316908,69922.0,69911.0,0.08960378]
[1773123111186,0.10316908,69922.0,69908.0,0.01795884]
[1773123112320,0.00144,69921.0,69910.0,0.01789623]
[1773123112487,0.00144,69921.0,69913.0,0.01789623]
[1773123113722,0.03144,69923.0,69913.0,0.07151659]
[1773123113899,0.00144,69922.0,69914.0,0.01783395]
[1773123118161,0.00144,69921.0,69914.0,0.01783395]
[1773123121652,0.03,69920.0,69911.0,0.0002]
[1773123122267,0.10151038,69920.0,69911.0,0.0002]
[1773123123896,0.10151038,69920.0,69911.0,0.01777641]
[1773123124861,0.03,69920.0,69912.0,0.01757641]
[1773123129441,0.03,69920.0,69912.0,0.08909451]
[1773123129642,0.03144,69921.0,69913.0,0.01745549]
[1773123130703,0.10294945,69921.0,69913.0,0.01745549]
[1773123131125,0.24500329,69921.0,69913.0,0.01745549]
[1773123131274,0.24500329,69921.0,69911.0,0.0002]
[1773123131477,0.03,69919.0,69911.0,0.0002]
[1773123132279,0.03,69919.0,69911.0,0.01753581]
[1773123132531,0.03,69920.0,69911.0,0.01753581]
[1773123133036,0.00144,69919.0,69911.0,0.01753581]
[1773123133720,0.03,69921.0,69913.0,0.01733581]
[1773123134099,0.00144,69920.0,69913.0,0.01733581]
[1773123134555,0.00144,69921.0,69913.0,0.01733581]
[1773123136371,0.03144,69921.0,69911.0,0.07171945]
[1773123137401,0.10294944,69921.0,69911.0,0.0002]
[1773123137575,0.10316945,69921.0,69911.0,0.0002]
[1773123137780,0.03166001,69921.0,69911.0,0.0002]
[1773123138110,0.03,69920.0,69911.0,0.0002]
[1773123139085,0.03166001,69921.0,69911.0,0.0002]
[1773123144534,0.03166001,69921.0,69911.0,0.0102]
[1773123145108,0.03,69920.0,69913.0,0.01729309]
[1773123146094,0.03166001,69921.0,69913.0,0.01729309]
[1773123147957,0.1031693,69921.0,69913.0,0.01729309]
[1773123148458,0.00144,69920.0,69913.0,0.01729309]
[1773123149944,0.00144,69920.0,69913.0,0.08881016]
[1773123152080,0.00144,69920.0,69914.0,0.01798519]
[1773123153453,0.00144,69920.0,69901.0,0.07152946]
[1773123153454,0.03,69918.0,69901.0,0.07152946]
[1773123153650,0.03,69918.0,69902.0,0.11404283]
[1773123154086,0.10151235,69918.0,69904.0,0.11404283]
[1773123154245,0.10151235,69918.0,69905.0,0.01792261]
[1773123156239,0.10151235,69918.0,69907.0,0.0183563]
[1773123157008,0.20879888,69918.0,69906.0,0.07152461]
[1773123158419,0.03,69917.0,69903.0,0.01829186]
[1773123158643,0.03,69917.0,69906.0,0.0002]
[1773123159390,0.03,69918.0,69906.0,0.0002]
[1773123159614,0.03,69915.0,69900.0,0.07176038]
[1773123159787,0.03,69910.0,69900.0,0.07176038]
[1773123160795,0.03,69909.0,69900.0,0.07176038]
[1773123161909,0.03,69913.0,69900.0,0.07176038]
[1773123162511,0.03,69911.0,69900.0,0.07176034]
[1773123163388,0.03,69911.0,69900.0,0.00023]
[1773123163899,0.03,69911.0,69900.0,0.07176071]
[1773123164370,0.13728653,69911.0,69900.0,0.07176071]
[1773123165013,0.2088065,69911.0,69900.0,0.07176071]
[1773123165622,0.03,69909.0,69900.0,0.07176071]
[1773123165839,0.00144,69908.0,69900.0,0.07176071]
[1773123166880,0.00144,69908.0,69895.0,0.01836443]
[1773123166881,0.03,69907.0,69895.0,0.0002]
[1773123167085,0.03,69905.0,69900.0,0.0002]
[1773123167247,0.03,69905.0,69900.0,0.01823788]
[1773123167643,0.03,69905.0,69896.0,0.01803788]
[1773123167844,0.03,69905.0,69896.0,0.0179751]
[1773123168092,0.03,69904.0,69896.0,0.0179751]
[1773123168588,0.03,69904.0,69895.0,0.0002]
[1773123168589,0.03144,69904.0,69895.0,0.0002]
[1773123169096,0.03,69903.0,69895.0,0.0002]
[1773123169295,0.03,69903.0,69893.0,0.0002]
[1773123170137,0.03,69902.0,69888.0,0.07154237]
[1773123170351,0.13814165,69899.0,69881.0,0.0715495]
[1773123170605,0.10814165,69897.0,69881.0,0.0715495]
[1773123170801,0.1079647,69897.0,69881.0,0.0715495]
[1773123171178,0.07153485,69896.0,69881.0,0.0715495]
[1773123171385,0.03,69890.0,69880.0,0.07175294]
[1773123171592,0.03,69890.0,69881.0,0.01807218]
[1773123171966,0.03,69890.0,69880.0,0.07175274]
[1773123172233,0.03,69889.0,69881.0,0.01800969]
[1773123172749,0.07153403,69897.0,69882.0,0.11564909]
[1773123172952,0.07153403,69897.0,69880.0,0.07175274]
[1773123173204,0.00163399,69896.0,69880.0,0.07175274]
[1773123173388,0.03,69894.0,69880.0,0.07175274]
[1773123173540,0.00144,69893.0,69882.0,0.01800969]
[1773123173741,0.00144,69893.0,69884.0,0.01800969]
[1773123173969,0.03,69894.0,69884.0,0.01800969]
[1773123174146,0.00144,69893.0,69884.0,0.01800969]
[1773123174551,0.00144,69892.0,69884.0,0.01800969]
[1773123174761,0.03,69893.0,69881.0,0.0002]
[1773123174951,0.00144,69891.0,69883.0,0.11564909]
[1773123175181,0.00144,69891.0,69881.0,0.0002]
[1773123175385,0.00144,69891.0,69881.0,0.01830668]
[1773123176018,0.03144,69891.0,69882.0,0.01804422]
[1773123177069,0.03,69890.0,69882.0,0.01804422]
[1773123178188,0.00144,69893.0,69890.0,0.00017695]
[1773123179072,0.00144,69893.0,69884.0,0.01798146]
[1773123179445,0.07118295,69895.0,69884.0,0.01798146]
[1773123179650,0.00144,69894.0,69884.0,0.01798146]
[1773123180216,0.00144,69894.0,69884.0,0.08952758]
[1773123180397,0.07297712,69894.0,69884.0,0.08952758]
[1773123181600,0.00144,69894.0,69884.0,0.08952758]
[1773123181777,0.00144,69893.0,69887.0,0.01785846]
[1773123181970,0.03,69896.0,69887.0,0.01785846]
[1773123182174,0.00144,69898.0,69890.0,0.11564909]
[1773123182421,0.00022001,69904.0,69893.0,0.01785846]
[1773123182579,0.00144,69901.0,69893.0,0.01785846]
[1773123184113,0.00144,69901.0,69887.0,0.07154406]
[1773123184440,0.03,69899.0,69887.0,0.08934706]
[1773123184681,0.03,69899.0,69888.0,0.019243]
[1773123185401,0.03,69899.0,69888.0,0.017803]
[1773123186099,0.00035394,69898.0,69888.0,0.017803]
[1773123186510,0.00035394,69898.0,69889.0,0.08928982]
[1773123187120,0.00035394,69898.0,69890.0,0.01774781]
[1773123187337,0.03035394,69898.0,69890.0,0.11934807]
[1773123187537,0.00144,69901.0,69891.0,0.11934807]
[1773123187770,0.00144,69901.0,69892.0,0.01774781]
[1773123188627,0.00144,69901.0,69893.0,0.07153792]
[1773123189027,0.03,69900.0,69889.0,0.07154201]
[1773123194144,0.1015311,69900.0,69889.0,0.07154201]
[1773123194343,0.1015311,69900.0,69889.0,0.05723357]
[1773123194564,0.03,69900.0,69889.0,0.0542021]
[1773123195765,0.10153111,69900.0,69889.0,0.0542021]
[1773123196138,0.03,69900.0,69889.0,0.0542021]
[1773123198388,0.10153114,69900.0,69887.0,0.01760037]
[1773123198596,0.10153114,69900.0,67625.0,0.00219335]
[1773123198597,0.03,69894.0,69881.0,0.07174986]
[1773123198791,0.03,69892.0,69881.0,0.07174986]
[1773123198992,0.04640516,69890.0,69881.0,0.07174986]
[1773123199198,0.01619403,69890.0,69881.0,0.07174986]
[1773123199729,0.01619403,69890.0,69882.0,0.0002]
[1773123200290,0.03,69889.0,69882.0,0.0002]
[1773123201111,0.03,69892.0,69882.0,0.0002]
[1773123201992,0.03144,69893.0,69882.0,0.0002]
[1773123202627,0.03,69891.0,69882.0,0.0002]
[1773123203183,0.03266236,69891.0,69880.0,0.07167835]
[1773123203370,0.03,69891.0,69881.0,0.01617784]
[1773123203673,0.03,69892.0,69880.0,0.07167835]
[1773123205092,0.10153898,69892.0,69878.0,0.01617784]
[1773123205845,0.03,69889.0,69875.0,0.00043]
[1773123206116,0.03,69889.0,69876.0,0.01617784]
[1773123206504,0.03,69889.0,69877.0,0.01617784]
[1773123206882,0.03,69891.0,69877.0,0.01617784]
[1773123207109,0.03,69889.0,69878.0,0.07155327]
[1773123209000,0.03,69889.0,69877.0,0.07155385]
[1773123209406,0.10154214,69889.0,69877.0,0.07155385]
[1773123210953,0.03,69889.0,69877.0,0.07155385]
[1773123211140,0.03,69888.0,69878.0,0.11934807]
[1773123211328,0.14204564,69894.0,69881.0,0.01617784]
[1773123211502,0.07153418,69897.0,69884.0,0.11934807]
[1773123211503,0.00144,69893.0,69884.0,0.11934807]
[1773123211701,0.00144,69893.0,69886.0,0.01617784]
[1773123212110,0.03,69894.0,69886.0,0.01617784]
[1773123212322,0.00144,69893.0,69886.0,0.01617784]
[1773123212910,0.03,69894.0,69886.0,0.01617784]
[1773123213115,0.1015376,69894.0,69886.0,0.01617784]
[1773123213337,0.00144,69893.0,69886.0,0.01617784]
[1773123214121,0.1015376,69894.0,69886.0,0.01617784]
[1773123214322,0.00144,69893.0,69886.0,0.01617784]
[1773123214621,0.1015376,69894.0,69886.0,0.01617784]
[1773123214824,0.00144,69893.0,69886.0,0.01617784]
[1773123215169,0.1015376,69894.0,69886.0,0.01617784]
[1773123215333,0.00144,69893.0,69886.0,0.01617784]
[1773123215758,0.00034781,69898.0,69886.0,0.01617784]
[1773123215936,0.07174678,69904.0,69890.0,0.01617784]
[1773123216139,0.00144,69903.0,69892.0,0.01617784]
[1773123217085,0.03144,69903.0,69892.0,0.01617784]
[1773123218666,0.03144,69903.0,69894.0,0.11328936]
[1773123218873,0.03144,69903.0,69895.0,0.01617784]
[1773123219068,0.10296802,69903.0,69895.0,0.01617784]
[1773123219774,0.10318803,69903.0,69895.0,0.01617784]
[1773123225547,0.0001278,69919.0,69897.0,0.11328936]
[1773123225548,0.00022001,69910.0,69897.0,0.11328936]
[1773123225727,0.00144,69909.0,69900.0,0.01603311]
[1773123226064,0.00144,69909.0,69895.0,0.07153579]
[1773123226065,0.00144,69909.0,69902.0,0.01603311]
[1773123226241,0.07318139,69910.0,69902.0,0.01603311]
[1773123226627,0.03,69909.0,69902.0,0.01603311]
[1773123227254,0.0301695,69909.0,69902.0,0.01603311]
[1773123227658,0.03,69907.0,69900.0,0.07152995]
[1773123228237,0.0301695,69907.0,69898.0,0.01747311]
[1773123228451,0.0301695,69907.0,69898.0,0.08900575]
[1773123230216,0.03,69906.0,69898.0,0.08900575]
[1773123230409,0.03,69906.0,69898.0,0.07297264]
[1773123231195,0.0301695,69906.0,69898.0,0.07153264]
[1773123231393,0.0301695,69906.0,69895.0,0.07153587]
[1773123231598,0.03225113,69906.0,69895.0,0.07153587]
[1773123233156,0.03225113,69906.0,69893.0,0.07153587]
[1773123234488,0.03,69905.0,69893.0,0.07153587]
[1773123234632,0.00144,69904.0,69893.0,0.07153587]
[1773123235404,0.0016095,69904.0,69893.0,0.07153587]
[1773123237105,0.0016095,69904.0,69893.0,0.07253587]
[1773123237289,0.0316095,69904.0,69893.0,0.07253587]
[1773123237487,0.03,69902.0,69885.0,0.07154611]
[1773123237691,0.10136665,69900.0,69886.0,0.07154459]
[1773123238115,0.10136665,69900.0,69887.0,0.01672415]
[1773123238279,0.08460712,69900.0,69887.0,0.01672415]
[1773123238679,0.08460712,69900.0,69888.0,0.01672415]
[1773123238918,0.08460712,69900.0,69889.0,0.01672415]
[1773123239380,0.03,69898.0,69890.0,0.07154099]
[1773123240501,0.00144,69897.0,69886.0,0.01672415]
[1773123240701,0.00144,69899.0,69886.0,0.11436377]
[1773123240890,0.00144,69899.0,69887.0,0.01672415]
[1773123241091,0.00144,69899.0,69889.0,0.01672415]
[1773123241374,0.0001695,69903.0,69892.0,0.11436377]
[1773123241567,0.00022001,69907.0,69896.0,0.11436377]
[1773123241568,0.07174397,69907.0,69896.0,0.11436377]
[1773123241772,0.00144,69904.0,69898.0,0.01672415]
[1773123241947,0.00144,69904.0,69893.0,0.01672415]
[1773123242145,0.00144,69904.0,69890.0,0.00144]
[1773123242317,0.03,69899.0,69890.0,0.00144]
[1773123242535,0.03,69899.0,69891.0,0.07153996]
[1773123243388,0.03,69898.0,69891.0,0.07153996]
[1773123244213,0.07152956,69902.0,69891.0,0.07153996]
[1773123244572,0.03,69901.0,69891.0,0.07153996]
[1773123245005,0.10153008,69901.0,69891.0,0.07153996]
[1773123246251,0.11828961,69901.0,69891.0,0.07153996]
[1773123246647,0.10153008,69901.0,69890.0,0.0002]
[1773123246798,0.03,69899.0,69890.0,0.0002]
[1773123247008,0.00144,69898.0,69890.0,0.0002]
[1773123248400,0.03,69897.0,69890.0,0.0002]
[1773123248989,0.11829384,69897.0,69890.0,0.0002]
[1773123249160,0.04675953,69895.0,69884.0,0.0717467]
[1773123250767,0.07153431,69897.0,69884.0,0.0717467]
[1773123250768,0.03,69893.0,69884.0,0.0002]
[1773123251034,0.03,69890.0,69884.0,0.0002]
[1773123252723,0.1015416,69890.0,69884.0,0.0002]
[1773123260337,0.03,69890.0,69884.0,0.0002]
[1773123261030,0.03,69890.0,69885.0,0.01577383]
[1773123261236,0.03,69890.0,69884.0,0.0002]
[1773123262213,0.03,69888.0,69884.0,0.0002]
[1773123263664,0.03,69886.0,69884.0,0.0002]
[1773123264233,0.00022001,69890.0,69885.0,0.01655126]
[1773123264433,0.00144,69889.0,69885.0,0.01655126]
[1773123264638,0.00144,69889.0,69884.0,0.0002]
[1773123264880,0.03144,69889.0,69884.0,0.0002]
[1773123266207,0.03,69888.0,69884.0,0.0002]
[1773123267214,0.03,69889.0,69884.0,0.0002]
[1773123267610,0.10154257,69889.0,69884.0,0.0002]
[1773123269620,0.07176161,69890.0,69885.0,0.11380576]
[1773123269824,0.07176161,69890.0,69886.0,0.01655126]
[1773123270022,0.07176161,69890.0,69884.0,0.0002]
[1773123272369,0.03,69889.0,69884.0,0.0002]
[1773123277728,0.03,69888.0,69884.0,0.0002]
[1773123281878,0.10153883,69893.0,69885.0,0.11135299]
[1773123282090,0.10153883,69893.0,69886.0,0.01612768]
[1773123283103,0.2,69900.0,69888.0,0.01612768]
[1773123283275,0.2,69900.0,69891.0,0.11135299]
[1773123283475,0.2,69900.0,69892.0,0.01612768]
[1773123283903,0.2,69900.0,69894.0,0.01612768]
[1773123284315,0.08149607,69900.0,69894.0,0.01612768]
[1773123284486,0.07152921,69902.0,69894.0,0.01612768]
[1773123286777,0.18076587,69910.0,69896.0,0.11135299]
[1773123286778,0.00022001,69910.0,69896.0,0.11135299]
[1773123287108,0.00022001,69910.0,69901.0,0.01612768]
[1773123287709,0.07317644,69915.0,69905.0,0.01612768]
[1773123287710,0.00022001,69915.0,69905.0,0.01612768]
[1773123288252,0.07173666,69914.0,69905.0,0.01612768]
[1773123288888,0.07173666,69914.0,69890.0,0.12627091]
[1773123288889,0.11011972,69913.0,69860.0,0.07957827]
[1773123289097,0.00585,69900.0,69864.0,0.01612768]
[1773123289335,0.01581902,69898.0,69863.0,0.11135299]
[1773123289509,0.01581902,69898.0,69874.0,0.11135299]
[1773123289815,0.01581902,69898.0,69878.0,0.11135299]
[1773123289976,0.00144,69897.0,69881.0,0.01612768]
[1773123290177,0.00144,69897.0,69883.0,0.01612768]
[1773123290386,0.01581902,69898.0,69883.0,0.01612768]
[1773123290387,0.00144,69896.0,69883.0,0.01612768]
[1773123290804,0.0001242,69896.0,69884.0,0.07154713]
[1773123291003,0.0001242,69896.0,69886.0,0.12748067]
[1773123291168,0.00022001,69899.0,69889.0,0.01612768]
[1773123291367,0.00022001,69899.0,69890.0,0.12748067]
[1773123291580,0.00022001,69906.0,69884.0,0.07154713]
[1773123291581,0.00022001,69906.0,69892.0,0.11135299]
[1773123291780,0.00144,69901.0,69893.0,0.01612768]
[1773123292205,0.00144,69902.0,69893.0,0.01612768]
[1773123292600,0.00022001,69906.0,69893.0,0.01612768]
[1773123292881,0.00144,69902.0,69893.0,0.01612768]
[1773123293309,0.00022001,69906.0,69894.0,0.07153689]
[1773123293430,0.11336982,69919.0,69899.0,0.01612768]
[1773123293813,0.00144,69916.0,69904.0,0.11135299]
[1773123294017,0.00144,69916.0,69906.0,0.12748067]
[1773123294226,0.00022001,69920.0,69907.0,0.01612768]
[1773123294227,0.00166001,69920.0,69907.0,0.01612768]
[1773123294353,0.00166001,69920.0,69911.0,0.01612768]
[1773123294695,0.00166001,69920.0,69912.0,0.01612768]
[1773123294856,0.00166001,69920.0,69912.0,0.12748067]
[1773123295056,0.00022001,69920.0,69912.0,0.12748067]
[1773123295281,0.00166001,69920.0,69912.0,0.12748067]
[1773123295795,0.00166001,69920.0,69913.0,0.07151745]
[1773123296017,0.00166001,69920.0,69914.0,0.01612768]
[1773123296018,0.00022001,69920.0,69914.0,0.01612768]
[1773123296173,0.00022001,69920.0,69914.0,0.12748067]
[1773123297325,0.00022001,69921.0,69914.0,0.11135299]
[1773123297624,0.00022001,69921.0,69915.0,0.07151541]
[1773123298106,0.03022001,69921.0,69915.0,0.07151541]
[1773123298313,0.00022001,69920.0,69915.0,0.07151541]
[1773123302382,0.00022001,69920.0,69914.0,0.07151541]
[1773123303741,0.00144,69923.0,69914.0,0.07151541]
[1773123304143,0.00144,69923.0,69913.0,0.07151745]
[1773123305549,0.00148299,69923.0,69913.0,0.07151745]
[1773123307065,0.03,69922.0,69913.0,0.07151745]
[1773123307790,0.10150864,69922.0,69913.0,0.07151745]
[1773123309152,0.03,69921.0,69913.0,0.07151745]
[1773123310041,0.07150862,69922.0,69921.0,0.00017701]
[1773123310280,0.07150862,69922.0,69913.0,0.07151745]
[1773123311010,0.01912076,69921.0,69901.0,0.07152973]
[1773123311134,0.07150862,69922.0,69893.0,0.07173954]
[1773123311135,0.03,69910.0,69893.0,0.07173954]
[1773123311339,0.03,69906.0,69893.0,0.07173954]
[1773123311557,0.03,69904.0,69893.0,0.07173954]
[1773123311966,0.07151336,69917.0,69897.0,0.07153382]
[1773123312187,0.00144,69916.0,69901.0,0.11827331]
[1773123312366,0.00144,69916.0,69903.0,0.13669935]
[1773123312565,0.00144,69915.0,69903.0,0.13669935]
[1773123312970,0.04912076,69916.0,69903.0,0.13669935]
[1773123313169,0.00144,69914.0,69897.0,0.07297382]
[1773123313369,0.00144,69914.0,69898.0,0.11827331]
[1773123314165,0.03,69912.0,69899.0,0.07153178]
[1773123314399,0.03,69908.0,69899.0,0.07153178]
[1773123314551,0.04912076,69908.0,69899.0,0.07153178]
[1773123316239,0.04912076,69908.0,69894.0,0.07153689]
[1773123316240,0.03,69905.0,69894.0,0.07153689]
[1773123316470,0.04912076,69905.0,69894.0,0.07153689]
[1773123317033,0.00144,69907.0,69894.0,0.07153689]
[1773123317357,0.03144,69907.0,69899.0,0.01842604]
[1773123317586,0.03126299,69907.0,69899.0,0.13669935]
[1773123317774,0.03,69907.0,69899.0,0.13669935]
[1773123317973,0.00144,69906.0,69899.0,0.13669935]
[1773123318200,0.10152423,69907.0,69899.0,0.20823064]
[1773123318583,0.03,69909.0,69899.0,0.20823064]
[1773123318761,0.10296162,69909.0,69899.0,0.20823064]
[1773123319407,0.10296162,69909.0,69899.0,0.20843064]
[1773123320212,0.03,69903.0,69893.0,0.0002019]
[1773123320445,0.07152461,69906.0,69893.0,0.0002019]
[1773123320446,0.03,69899.0,69893.0,0.0002019]
[1773123321072,0.03,69897.0,69887.0,0.07154406]
[1773123321276,0.00144,69896.0,69887.0,0.07154406]
[1773123321476,0.00144,69896.0,69886.0,0.07154508]
[1773123321683,0.03,69895.0,69886.0,0.07154508]
[1773123322307,0.03,69895.0,69885.0,0.07174406]
[1773123322694,0.10153633,69895.0,69885.0,0.0002]
[1773123322845,0.12065709,69895.0,69885.0,0.0002]
[1773123324517,0.12065709,69895.0,69884.0,0.06994279]
[1773123324928,0.12065709,69895.0,69884.0,0.07154713]
[1773123325447,0.00144,69899.0,69887.0,0.12357211]
[1773123325652,0.03,69901.0,69890.0,0.00411757]
[1773123325865,0.00144,69910.0,69893.0,0.11827331]
[1773123326061,0.00144,69910.0,69897.0,0.11827331]
[1773123326259,0.00144,69910.0,69900.0,0.01842604]
[1773123326410,0.00144,69910.0,69902.0,0.07152871]
[1773123326927,0.07295558,69915.0,69903.0,0.13669935]
[1773123327349,0.09063634,69915.0,69903.0,0.11827331]
[1773123327554,0.03,69914.0,69903.0,0.11827331]
[1773123328361,0.03,69914.0,69904.0,0.07152666]
[1773123328778,0.10151654,69914.0,69904.0,0.07152666]
[1773123329705,0.10151654,69914.0,69904.0,0.02969677]
[1773123330061,0.1206373,69914.0,69904.0,0.02969677]
[1773123330491,0.04912076,69914.0,69903.0,0.07152666]
[1773123334392,0.04934077,69914.0,69903.0,0.07152666]
[1773123335648,0.12085738,69914.0,69903.0,0.07152666]
[1773123336816,0.00144,69913.0,69903.0,0.07152666]
[1773123337561,0.00144,69913.0,69904.0,0.12465344]
[1773123337738,0.00144,69915.0,69906.0,0.12465344]
[1773123337939,0.00144,69915.0,69907.0,0.14450266]
[1773123338581,0.03144,69915.0,69908.0,0.07152257]
[1773123339914,0.03,69914.0,69908.0,0.07152257]
[1773123340062,0.03,69914.0,69908.0,0.06150774]
[1773123340880,0.00144,69915.0,69908.0,0.06150774]
[1773123342369,0.00144,69916.0,69908.0,0.06150774]
[1773123342576,0.00144,69918.0,69910.0,0.01997833]
[1773123342779,0.00144,69918.0,69913.0,0.06208477]
[1773123342995,0.00144,69919.0,69914.0,0.12321344]
[1773123343225,0.00144,69919.0,69915.0,0.14463177]
[1773123343426,0.00144,69919.0,69913.0,0.06208477]
[1773123343427,0.03144,69919.0,69913.0,0.06208477]
[1773123343632,0.00022001,69915.0,69913.0,0.06208477]
[1773123344030,0.00022001,69915.0,69911.0,0.21615099]
[1773123344258,0.00022001,69915.0,69912.0,0.01997833]
[1773123344590,0.00022001,69915.0,69912.0,0.14463177]
[1773123344794,0.00022001,69921.0,69913.0,0.07151745]
[1773123344998,0.00022001,69930.0,69923.0,0.12465344]
[1773123345231,0.00022001,69932.0,69926.0,0.12465344]
[1773123345468,0.07293298,69937.0,69927.0,0.01997833]
[1773123345881,0.03053191,69936.0,69927.0,0.01997833]
[1773123347231,0.03053191,69936.0,69928.0,0.07150211]
[1773123347437,0.03022001,69935.0,69926.0,0.07150327]
[1773123347839,0.03,69933.0,69922.0,0.07294817]
[1773123348051,0.00979824,69930.0,69913.0,0.01997833]
[1773123348285,0.08457564,69923.0,69901.0,0.07152973]
[1773123348494,0.03979824,69919.0,69902.0,0.00144]
[1773123348705,0.03979824,69919.0,69903.0,0.01997833]
[1773123348913,0.03979824,69919.0,69902.0,0.00144]
[1773123348914,0.03144,69919.0,69906.0,0.12465344]
[1773123349122,0.03,69919.0,69910.0,0.07152052]
[1773123349324,0.07150949,69921.0,69910.0,0.07152052]
[1773123349325,0.07294949,69921.0,69912.0,0.01997833]
[1773123349482,0.03,69920.0,69912.0,0.01997833]
[1773123351570,0.10173092,69920.0,69912.0,0.09169663]
[1773123353878,0.10317092,69920.0,69912.0,0.09169663]
[1773123356859,0.10317092,69920.0,69912.0,0.0002]
[1773123357868,0.03166001,69920.0,69913.0,0.01872477]
[1773123358088,0.03,69919.0,69913.0,0.01872477]
[1773123359647,0.03,69919.0,69913.0,0.09024217]
[1773123360482,0.03,69919.0,69913.0,0.04848776]
[1773123360683,0.00144,69922.0,69913.0,0.06721253]
[1773123360929,0.00863761,69927.0,69914.0,0.00144]
[1773123361129,0.01969405,69930.0,69916.0,0.01872477]
[1773123361342,0.00144,69929.0,69916.0,0.01872477]
[1773123361802,0.03,69927.0,69917.0,0.07151336]
[1773123362209,0.03,69927.0,69918.0,0.01872477]
[1773123362739,0.03,69926.0,69918.0,0.01872477]
[1773123363844,0.03,69925.0,69919.0,0.07151132]
[1773123365006,0.03,69927.0,69919.0,0.07151132]
[1773123365586,0.00022001,69922.0,69919.0,0.07151132]
[1773123365944,0.00022001,69922.0,69918.0,0.07151132]
[1773123366479,0.00022001,69922.0,69912.0,0.0002]
[1773123366628,0.03,69917.0,69905.0,0.07172461]
[1773123367208,0.03,69915.0,69905.0,0.07172461]
[1773123368997,0.03,69914.0,69905.0,0.07172461]
[1773123370239,0.03,69916.0,69905.0,0.07172461]
[1773123370899,0.07151541,69915.0,69905.0,0.0002]
[1773123371229,0.07151541,69915.0,69900.0,0.00585]
[1773123371230,0.03,69908.0,69900.0,0.00585]
[1773123371609,0.03,69908.0,69888.0,0.0001976]
[1773123371610,0.03,69904.0,69888.0,0.0001976]
[1773123371811,0.03,69899.0,69888.0,0.07174035]
[1773123372680,0.03,69899.0,69898.0,0.0002]
[1773123372882,0.04893235,69899.0,69898.0,0.0002]
[1773123373376,0.12046413,69899.0,69898.0,0.0002]
[1773123373915,0.12146413,69899.0,69898.0,0.0002]
[1773123374127,0.12146413,69899.0,69891.0,0.0002]
[1773123374128,0.01893235,69898.0,69891.0,0.0002]
[1773123374335,0.10253178,69899.0,69885.0,0.07174599]
[1773123374336,0.03,69893.0,69885.0,0.0002]
[1773123374588,0.03,69891.0,69885.0,0.0002]
[1773123375143,0.03,69891.0,69879.0,0.00144]
[1773123375348,0.03,69889.0,69879.0,0.00144]
[1773123377247,0.03,69891.0,69880.0,0.12567884]
[1773123377464,0.1204727,69891.0,69881.0,0.0715502]
[1773123378055,0.10154035,69891.0,69881.0,0.0715502]
[1773123378248,0.10154035,69891.0,69880.0,0.0715502]
[1773123381916,0.10154035,69891.0,69880.0,0.0725502]
[1773123383445,0.10154035,69891.0,69880.0,0.0715502]
[1773123385960,0.10154035,69891.0,69880.0,0.0717502]
[1773123386133,0.07153689,69895.0,69883.0,0.01992603]
[1773123386339,0.00144,69903.0,69888.0,0.01992603]
[1773123386537,0.00144,69903.0,69890.0,0.01992603]
[1773123386865,0.00144,69903.0,69884.0,0.07298611]
[1773123386866,0.01893235,69899.0,69884.0,0.07298611]
[1773123387019,0.01893235,69898.0,69884.0,0.07298611]
[1773123387217,0.03,69895.0,69884.0,0.07298611]
[1773123388424,0.04893235,69893.0,69882.0,0.07154885]
[1773123388631,0.04893235,69893.0,69883.0,0.00144]
[1773123389429,0.04893235,69893.0,69882.0,0.07154885]
[1773123389650,0.04893235,69893.0,69882.0,0.07298885]
[1773123391332,0.03,69891.0,69882.0,0.07154885]